fUST/lending_fUST_20250227
["ID","MTS","AMOUNT","RATE_DAILY","PERIOD"]
[354719178,1740643836874,-500.0,0.00046575,120]
[354719180,1740643836884,-500.0,0.00046575,120]
[354719182,1740643836893,-841.5,0.00046575,120]
[354719184,1740643836903,-500.0,0.00046575,120]
[354719187,1740643836913,-500.0,0.00046575,120]
[354719189,1740643836923,-500.0,0.00046575,120]
[354719191,1740643836932,-500.0,0.00046575,120]
[354719193,1740643836941,-509.96198563,0.00046575,120]
[354719195,1740643836951,-528.96,0.00046575,120]
[354719196,1740643836963,-500.0,0.00046575,120]
[354719199,1740643836973,-620.69425753,0.00046575,120]
[354719201,1740643836983,-500.0,0.00046575,120]
[354719203,1740643836992,-500.0,0.00046575,120]
[354719205,1740643837001,-500.0,0.00046575,120]
[354719207,1740643837011,-500.0,0.00046575,120]
[354719209,1740643837021,-151.0,0.00046575,120]
[354719211,1740643837031,-298.86262,0.00046575,120]
[354719213,1740643837040,-500.0,0.00046575,120]
[354719215,1740643837050,-500.0,0.00046575,120]
[354719217,1740643837060,-500.0,0.00046575,120]
[354719219,1740643837070,-500.0,0.00046575,120]
[354719221,1740643837080,-500.0,0.00046575,120]
[354719223,1740643837090,-500.0,0.00046575,120]
[354719225,1740643837099,-807.03,0.00046575,120]
[354719227,1740643837108,-504.07,0.00046575,120]
[354719229,1740643837119,-551.59578231,0.00046575,120]
[354719231,1740643837128,-500.0,0.00046575,120]
[354719251,1740643837302,-500.0,0.00046575,120]
[354719253,1740643837312,-500.0,0.00046575,120]
[354719255,1740643837321,-500.0,0.00046575,120]
[354719257,1740643837330,-500.0,0.00046575,120]
[354719259,1740643837340,-500.0,0.00046575,120]
[354719261,1740643837349,-500.0,0.00046575,120]
[354719263,1740643837358,-500.0,0.00046575,120]
[354719265,1740643837367,-500.0,0.00046575,120]
[354719267,1740643837377,-500.0,0.00046575,120]
[354719269,1740643837386,-500.0,0.00046575,120]
[354719271,1740643837395,-500.0,0.00046575,120]
[354719273,1740643837404,-500.0,0.00046575,120]
[354719275,1740643837414,-500.0,0.00046575,120]
[354719277,1740643837425,-211.27590076,0.00046575,120]
[354719279,1740643837435,-500.0,0.00046575,120]
[354719281,1740643837445,-500.0,0.00046575,120]
[354719283,1740643837455,-492.70444578,0.00046575,120]
[354719285,1740643837465,-500.0,0.00046575,120]
[354719287,1740643837475,-500.0,0.00046575,120]
[354719289,1740643837485,-500.0,0.00046575,120]
[354719291,1740643837494,-523.56564249,0.00046575,10]
[354719293,1740643837503,-500.0,0.00046575,120]
[354719295,1740643837513,-500.0,0.00046575,120]
[354719296,1740643837522,-500.0,0.00046575,120]
[354719297,1740643837531,-500.0,0.00046575,120]
[354719298,1740643837540,-500.0,0.00046575,120]
[354719299,1740643837549,-500.0,0.00046575,120]
[354719301,1740643837559,-584.7245525,0.00046575,120]
[354719303,1740643837568,-500.0,0.00046575,120]
[354719304,1740643837578,-500.0,0.00046575,120]
[354719306,1740643837587,-500.0,0.00046575,120]
[354719308,1740643837598,-500.0,0.00046575,120]
[354719309,1740643837607,-500.0,0.00046575,120]
[354719310,1740643837617,-500.0,0.00046575,120]
[354719311,1740643837626,-500.0,0.00046575,120]
[354719312,1740643837636,-440.14248299,0.00046575,120]
[354719313,1740643837645,-500.0,0.00046575,120]
[354719314,1740643837654,-500.0,0.00046575,120]
[354719315,1740643837664,-500.0,0.00046575,120]
[354719316,1740643837673,-500.0,0.00046575,120]
[354719317,1740643837682,-500.0,0.00046575,120]
[354719318,1740643837691,-500.0,0.00046575,120]
[354719319,1740643837700,-500.0,0.00046575,120]
[354719320,1740643837709,-500.0,0.00046575,120]
[354719321,1740643837719,-500.0,0.00046575,120]
[354719322,1740643837728,-500.0,0.00046575,120]
[354719323,1740643837738,-500.0,0.00046575,120]
[354719324,1740643837746,-284.8218585,0.00046575,120]
[354719325,1740643837756,-500.0,0.00046575,120]
[354719326,1740643837766,-500.0,0.00046575,120]
[354719327,1740643837775,-500.0,0.00046575,120]
[354719328,1740643837785,-500.0,0.00046575,120]
[354719329,1740643837794,-7125.49,0.00046575,120]
[354719330,1740643837803,-500.0,0.00046575,120]
[354719331,1740643837812,-500.0,0.00046575,120]
[354719332,1740643837821,-744.51,0.00046575,120]
[354719333,1740643837831,-500.0,0.00046575,120]
[354719334,1740643837840,-5296.41,0.00046575,120]
[354719335,1740643837849,-500.0,0.00046575,120]
[354719336,1740643837858,-500.0,0.00046575,120]
[354719337,1740643837868,-500.0,0.00046575,120]
[354719339,1740643837877,-302.43428716,0.00046575,120]
[354719341,1740643837886,-500.0,0.00046575,120]
[354719342,1740643837895,-500.0,0.00046575,120]
[354719343,1740643837904,-500.0,0.00046575,120]
[354719344,1740643837913,-500.0,0.00046575,120]
[354719345,1740643837922,-500.0,0.00046575,120]
[354719346,1740643837931,-500.0,0.00046575,120]
[354719347,1740643837940,-548.40654811,0.00046575,120]
[354719348,1740643837950,-500.0,0.00046575,120]
[354719349,1740643837963,-500.0,0.00046575,120]
[354719350,1740643837973,-1064.04,0.00046575,120]
[354719352,1740643837982,-500.0,0.00046575,120]
[354719353,1740643837991,-500.0,0.00046575,120]
[354719354,1740643838001,-2621.9,0.00046575,120]
[354719355,1740643838011,-515.8,0.00046575,120]
[354719356,1740643838020,-500.0,0.00046575,120]
[354719357,1740643838030,-500.0,0.00046575,120]
[354719358,1740643838040,-745.88,0.00046575,120]
[354719359,1740643838049,-500.0,0.00046575,120]
[354719360,1740643838059,-507.51,0.00046575,120]
[354719361,1740643838067,-1331.37,0.00046575,120]
[354719362,1740643838077,-500.0,0.00046575,120]
[354719363,1740643838087,-500.0,0.00046575,120]
[354719364,1740643838096,-444.5363243,0.00046575,120]
[354719365,1740643838105,-500.0,0.00046575,120]
[354719366,1740643838114,-500.0,0.00046575,120]
[354719367,1740643838123,-500.0,0.00046575,120]
[354719368,1740643838133,-522.02388365,0.00046575,120]
[354719369,1740643838142,-43931.95,0.00046575,7]
[354719370,1740643838151,-500.0,0.00046575,120]
[354719371,1740643838160,-3799.07,0.00046575,120]
[354719372,1740643838170,-500.0,0.00046575,120]
[354719373,1740643838179,-841.24,0.00046575,120]
[354719374,1740643838188,-500.0,0.00046575,120]
[354719375,1740643838198,-503.04419522,0.00046575,120]
[354719376,1740643838207,-500.0,0.00046575,120]
[354719377,1740643838216,-500.0,0.00046575,120]
[354719378,1740643838225,-500.0,0.00046575,120]
[354719379,1740643838234,-882.72,0.00046575,120]
[354719380,1740643838243,-500.0,0.00046575,120]
[354719381,1740643838253,-500.0,0.00046575,120]
[354719382,1740643838263,-11997.45,0.00046575,120]
[354719384,1740643838273,-500.0,0.00046575,30]
[354719385,1740643838282,-1302.38,0.00046575,120]
[354719386,1740643838291,-500.0,0.00046575,120]
[354719387,1740643838301,-500.0,0.00046575,120]
[354719388,1740643838310,-808.04,0.00046575,120]
[354719389,1740643838319,-500.0,0.00046575,120]
[354719390,1740643838329,-504.39744688,0.00046575,120]
[354719391,1740643838338,-500.0,0.00046575,120]
[354719392,1740643838347,-500.0,0.00046575,120]
[354719393,1740643838356,-500.0,0.00046575,120]
[354719394,1740643838365,-500.0,0.00046575,120]
[354719395,1740643838375,-500.0,0.00046575,120]
[354719396,1740643838384,-859.92,0.00046575,120]
[354719397,1740643838393,-1913.41,0.00046575,120]
[354719398,1740643838402,-500.0,0.00046575,120]
[354719399,1740643838412,-500.0,0.00046575,120]
[354719400,1740643838421,-750.4,0.00046575,120]
[354719401,1740643838430,-600.0,0.00046575,120]
[354719402,1740643838439,-500.0,0.00046575,7]
[354719403,1740643838449,-500.0,0.00046575,120]
[354719404,1740643838458,-500.0,0.00046575,120]
[354719405,1740643838467,-500.0,0.00046575,120]
[354719406,1740643838476,-1000.0,0.00046575,2]
[354719407,1740643838485,-500.0,0.00046575,120]
[354719408,1740643838495,-2005.67,0.00046575,120]
[354719409,1740643838504,-500.0,0.00046575,120]
[354719410,1740643838513,-566.22,0.00046575,120]
[354719411,1740643838523,-500.0,0.00046575,120]
[354719412,1740643838532,-500.0,0.00046575,120]
[354719413,1740643838542,-500.0,0.00046575,120]
[354719414,1740643838551,-500.0,0.00046575,120]
[354719415,1740643838560,-500.0,0.00046575,120]
[354719416,1740643838569,-500.0,0.00046575,120]
[354719417,1740643838579,-500.0,0.00046575,120]
[354719418,1740643838589,-1266.05,0.00046575,120]
[354719419,1740643838598,-647.13586669,0.00046575,120]
[354719420,1740643838607,-177.26244595,0.00046575,120]
[354719421,1740643838616,-500.0,0.00046575,120]
[354719422,1740643838625,-500.0,0.00046575,120]
[354719423,1740643838634,-500.0,0.00046575,120]
[354719424,1740643838643,-500.0,0.00046575,120]
[354719425,1740643838652,-757.67,0.00046575,120]
[354719426,1740643838662,-500.0,0.00046575,120]
[354719427,1740643838671,-500.0,0.00046575,120]
[354719428,1740643838680,-500.0,0.00046575,120]
[354719429,1740643838689,-500.0,0.00046575,120]
[354719430,1740643838698,-500.0,0.00046575,120]
[354719431,1740643838707,-500.0,0.00046575,120]
[354719432,1740643838716,-500.0,0.00046575,120]
[354719433,1740643838725,-500.0,0.00046575,120]
[354719434,1740643838734,-500.0,0.00046575,120]
[354719435,1740643838744,-500.0,0.00046575,120]
[354719436,1740643838752,-580.24,0.00046575,120]
[354719437,1740643838763,-500.0,0.00046575,120]
[354719438,1740643838773,-500.0,0.00046575,120]
[354719439,1740643838782,-503.59832505,0.00046575,120]
[354719440,1740643838791,-500.0,0.00046575,120]
[354719441,1740643838800,-500.0,0.00046575,120]
[354719442,1740643838810,-500.0,0.00046575,120]
[354719443,1740643838819,-500.0,0.00046575,120]
[354719444,1740643838828,-500.0,0.00046575,120]
[354719445,1740643838837,-500.0,0.00046575,120]
[354719446,1740643838847,-500.0,0.00046575,120]
[354719447,1740643838856,-902.37,0.00046575,120]
[354719448,1740643838865,-501.40986422,0.00046575,120]
[354719449,1740643838874,-500.0,0.00046575,120]
[354719450,1740643838883,-500.0,0.00046575,120]
[354719451,1740643838892,-500.0,0.00046575,120]
[354719452,1740643838901,-500.0,0.00046575,21]
[354719453,1740643838910,-500.0,0.00046575,120]
[354719454,1740643838919,-1343.52,0.00046575,120]
[354719455,1740643838928,-500.0,0.00046575,120]
[354719456,1740643838938,-500.0,0.00046575,120]
[354719457,1740643838947,-2321.44,0.00046575,120]
[354719458,1740643838959,-500.0,0.00046575,120]
[354719459,1740643838968,-500.0,0.00046575,120]
[354719460,1740643838977,-507.02473555,0.00046575,120]
[354719461,1740643838986,-500.0,0.00046575,120]
[354719462,1740643838995,-500.0,0.00046575,120]
[354719463,1740643839004,-500.0,0.00046575,120]
[354719464,1740643839014,-677.1,0.00046575,120]
[354719465,1740643839023,-500.0,0.00046575,120]
[354719466,1740643839032,-241.75461406,0.00046575,120]
[354719467,1740643839041,-500.0,0.00046575,120]
[354719468,1740643839050,-500.0,0.00046575,120]
[354719469,1740643839059,-500.0,0.00046575,120]
[354719470,1740643839074,-857.13,0.00046575,120]
[354719471,1740643839083,-500.0,0.00046575,120]
[354719472,1740643839092,-500.0,0.00046575,120]
[354719473,1740643839101,-575.67,0.00046575,120]
[354719474,1740643839110,-500.0,0.00046575,120]
[354719475,1740643839119,-500.0,0.00046575,120]
[354719476,1740643839128,-803.57,0.00046575,120]
[354719477,1740643839137,-500.0,0.00046575,120]
[354719478,1740643839147,-507.19723856,0.00046575,120]
[354719479,1740643839156,-237.30087995,0.00046575,120]
[354719480,1740643839201,-868.68912005,0.00046575,120]
[354719481,1740643839210,-1309.87,0.00046575,120]
[354719482,1740643839219,-10334.08,0.00046575,6]
[354719483,1740643839229,-518.99685636,0.00046575,120]
[354719484,1740643839238,-500.0,0.00046575,7]
[354719485,1740643839247,-500.0,0.00046575,120]
[354719486,1740643839257,-500.0,0.00046575,120]
[354719487,1740643839266,-500.0,0.00046575,120]
[354719488,1740643839276,-774.85,0.00046575,120]
[354719489,1740643839285,-500.0,0.00046575,120]
[354719490,1740643839295,-500.0,0.00046575,120]
[354719491,1740643839304,-451.10347963,0.00046575,2]
[354719492,1740643839313,-500.0,0.00046575,120]
[354719493,1740643839323,-500.0,0.00046575,120]
[354719494,1740643839332,-500.0,0.00046575,120]
[354719495,1740643839341,-500.0,0.00046575,120]
[354719496,1740643839351,-500.0,0.00046575,120]
[354719497,1740643839359,-500.0,0.00046575,120]
[354719498,1740643839369,-500.0,0.00046575,2]
[354719499,1740643839378,-500.0,0.00046575,120]
[354719500,1740643839386,-500.0,0.00046575,120]
[354719501,1740643839395,-500.0,0.00046575,120]
[354719502,1740643839404,-500.0,0.00046575,120]
[354719503,1740643839413,-1326.76,0.00046575,120]
[354719504,1740643839422,-500.0,0.00046575,120]
[354719505,1740643839432,-2848.91,0.00046575,120]
[354719506,1740643839441,-500.0,0.00046575,120]
[354719507,1740643839450,-500.0,0.00046575,120]
[354719508,1740643839459,-16199.81,0.00046575,120]
[354719509,1740643839467,-500.0,0.00046575,120]
[354719510,1740643839477,-3904.78,0.00046575,120]
[354719511,1740643839487,-500.0,0.00046575,120]
[354719512,1740643839495,-500.0,0.00046575,120]
[354719513,1740643839505,-507.68,0.00046575,120]
[354719514,1740643839514,-546.86376458,0.00046575,120]
[354719515,1740643839524,-500.0,0.00046575,120]
[354719516,1740643839533,-5860.68,0.000466,30]
[354719517,1740643839542,-500.0,0.00046849,120]
[354719518,1740643839551,-526.88,0.00046849,120]
[354719519,1740643839561,-500.0,0.00046849,120]
[354719520,1740643839570,-500.0,0.00046849,120]
[354719521,1740643839579,-500.0,0.00046849,120]
[354719522,1740643839588,-1659.64,0.00046849,120]
[354719523,1740643839597,-500.0,0.00046849,120]
[354719524,1740643839606,-500.0,0.00046849,120]
[354719525,1740643839615,-500.0,0.00046849,120]
[354719526,1740643839624,-500.0,0.00046849,120]
[354719527,1740643839633,-500.0,0.00046849,120]
[354719528,1740643839642,-500.0,0.00046849,120]
[354719529,1740643839651,-500.0,0.00046849,120]
[354719530,1740643839660,-500.0,0.00046849,120]
[354719531,1740643839669,-434.03831374,0.00046849,120]
[354719532,1740643839678,-500.0,0.00046849,120]
[354719533,1740643839687,-500.0,0.00046849,120]
[354719534,1740643839697,-500.0,0.00046849,120]
[354719535,1740643839706,-500.0,0.00046849,120]
[354719536,1740643839715,-500.0,0.00046849,120]
[354719537,1740643839724,-500.0,0.00046849,120]
[354719538,1740643839733,-500.0,0.00046849,120]
[354719539,1740643839742,-191.78995191,0.00046849,120]
[354719540,1740643839751,-500.0,0.00046849,120]
[354719541,1740643839761,-500.0,0.00046849,120]
[354719542,1740643839769,-500.0,0.00046849,120]
[354719543,1740643839779,-169.46000001,0.00046849,120]
[354719544,1740643839788,-500.0,0.00046849,120]
[354719545,1740643839797,-500.0,0.00046849,120]
[354719546,1740643839806,-500.0,0.00046849,120]
[354719548,1740643839815,-500.0,0.00046849,120]
[354719550,1740643839824,-2280.85,0.00046849,120]
[354719551,1740643839833,-500.0,0.00046849,120]
[354719552,1740643839842,-500.0,0.00046849,120]
[354719553,1740643839851,-500.0,0.00046849,120]
[354719554,1740643839860,-943.78,0.00046849,120]
[354719555,1740643839869,-858.1,0.00046849,120]
[354719556,1740643839878,-500.0,0.00046849,120]
[354719557,1740643839887,-500.0,0.00046849,120]
[354719558,1740643839896,-500.0,0.00046849,120]
[354719559,1740643839905,-500.0,0.00046849,120]
[354719560,1740643839914,-767.01,0.00046849,120]
[354719561,1740643839923,-500.0,0.00046849,120]
[354719562,1740643839932,-500.0,0.00046849,120]
[354719563,1740643839941,-500.0,0.00046849,120]
[354719564,1740643839950,-500.0,0.00046849,120]
[354719565,1740643839962,-500.0,0.00046849,120]
[354719566,1740643839972,-500.0,0.00046849,120]
[354719567,1740643839981,-500.0,0.00046849,120]
[354719568,1740643839990,-500.0,0.00046849,120]
[354719569,1740643839999,-500.0,0.00046849,120]
[354719570,1740643840010,-500.0,0.00046849,120]
[354719571,1740643840019,-500.0,0.00046849,120]
[354719572,1740643840028,-500.0,0.00046849,120]
[354719573,1740643840038,-500.0,0.00046849,120]
[354719574,1740643840047,-500.0,0.00046849,120]
[354719575,1740643840056,-500.0,0.00046849,120]
[354719576,1740643840066,-500.0,0.00046849,120]
[354719577,1740643840076,-500.0,0.00046849,120]
[354719578,1740643840085,-729.62,0.00046849,120]
[354719579,1740643840094,-500.0,0.00046849,120]
[354719580,1740643840103,-500.0,0.00046849,120]
[354719581,1740643840113,-500.0,0.00046849,120]
[354719582,1740643840122,-500.0,0.00046849,120]
[354719583,1740643840132,-796.6,0.00046849,120]
[354719584,1740643840141,-169.14,0.00046849,120]
[354719585,1740643840150,-503.91,0.00046849,120]
[354719586,1740643840160,-500.0,0.00046849,120]
[354719587,1740643840169,-500.0,0.00046849,120]
[354719588,1740643840179,-500.0,0.00046849,120]
[354719589,1740643840188,-500.0,0.00046849,120]
[354719590,1740643840198,-297.06572,0.00046849,120]
[354719591,1740643840207,-558.79,0.00046849,120]
[354719592,1740643840216,-500.0,0.00046849,120]
[354719593,1740643840225,-500.0,0.00046849,120]
[354719594,1740643840235,-500.0,0.00046849,120]
[354719595,1740643840245,-553.78,0.00046849,120]
[354719596,1740643840254,-706.99,0.00046849,120]
[354719597,1740643840265,-500.0,0.00046849,120]
[354719598,1740643840275,-655.65,0.00046849,120]
[354719599,1740643840285,-500.0,0.00046849,120]
[354719600,1740643840296,-500.0,0.00046849,120]
[354719601,1740643840305,-500.0,0.00046849,120]
[354719602,1740643840314,-564.48,0.00046849,120]
[354719603,1740643840323,-648.24,0.00046849,120]
[354719604,1740643840332,-866.32,0.00046849,120]
[354719605,1740643840342,-601.16,0.00046849,120]
[354719606,1740643840351,-500.0,0.00046849,120]
[354719607,1740643840360,-500.0,0.00046849,120]
[354719608,1740643840369,-583.27,0.00046849,120]
[354719609,1740643840379,-500.0,0.00046849,120]
[354719610,1740643840388,-1082.09,0.00046849,120]
[354719611,1740643840397,-500.0,0.00046849,120]
[354719612,1740643840406,-500.0,0.00046849,3]
[354719613,1740643840415,-500.0,0.00046849,120]
[354719614,1740643840425,-500.0,0.00046849,120]
[354719615,1740643840434,-500.0,0.00046849,120]
[354719616,1740643840444,-841.5,0.00046849,120]
[354719617,1740643840453,-500.0,0.00046849,120]
[354719618,1740643840463,-528.96,0.00046849,120]
[354719619,1740643840472,-500.0,0.00046849,120]
[354719620,1740643840481,-500.0,0.00046849,120]
[354719621,1740643840490,-500.0,0.00046849,120]
[354719622,1740643840499,-500.0,0.00046849,120]
[354719623,1740643840508,-500.0,0.00046849,120]
[354719624,1740643840518,-500.0,0.00046849,120]
[354719625,1740643840527,-807.03,0.00046849,120]
[354719626,1740643840536,-504.07,0.00046849,120]
[354719627,1740643840545,-500.0,0.00046849,120]
[354719628,1740643840554,-500.0,0.00046849,120]
[354719629,1740643840563,-500.0,0.00046849,120]
[354719630,1740643840573,-500.0,0.00046849,120]
[354719631,1740643840716,-500.0,0.00046849,120]
[354719632,1740643840726,-500.0,0.00046849,120]
[354719633,1740643840735,-500.0,0.00046849,120]
[354719634,1740643840744,-573.81588396,0.00046849,120]
[354719635,1740643840755,-500.0,0.00046849,120]
[354719636,1740643840764,-500.0,0.00046849,120]
[354719637,1740643840773,-500.0,0.00046849,120]
[354719638,1740643840782,-500.0,0.00046849,120]
[354719639,1740643840791,-500.0,0.00046849,120]
[354719640,1740643840800,-500.0,0.00046849,120]
[354719641,1740643840810,-500.0,0.00046849,120]
[354719642,1740643840819,-500.0,0.00046849,120]
[354719643,1740643840828,-500.0,0.00046849,120]
[354719644,1740643840837,-243.74711259,0.00046849,120]
[354719645,1740643840847,-500.0,0.00046849,120]
[354719646,1740643840855,-500.0,0.00046849,120]
[354719647,1740643840865,-500.0,0.00046849,120]
[354719648,1740643840874,-500.0,0.00046849,120]
[354719649,1740643840883,-500.0,0.00046849,120]
[354719650,1740643840892,-500.0,0.00046849,120]
[354719651,1740643840901,-500.0,0.00046849,120]
[354719652,1740643840910,-500.0,0.00046849,120]
[354719653,1740643840919,-500.0,0.00046849,120]
[354719654,1740643840928,-500.0,0.00046849,120]
[354719655,1740643840937,-500.0,0.00046849,120]
[354719656,1740643840946,-500.0,0.00046849,120]
[354719657,1740643840957,-500.0,0.00046849,120]
[354719658,1740643840968,-500.0,0.00046849,120]
[354719659,1740643840977,-7125.49,0.00046849,120]
[354719660,1740643840986,-500.0,0.00046849,120]
[354719661,1740643840995,-744.51,0.00046849,120]
[354719662,1740643841005,-500.0,0.00046849,120]
[354719663,1740643841015,-5296.41,0.00046849,120]
[354719664,1740643841025,-500.0,0.00046849,120]
[354719665,1740643841034,-500.0,0.00046849,120]
[354719666,1740643841044,-500.0,0.00046849,120]
[354719667,1740643841053,-500.0,0.00046849,120]
[354719668,1740643841062,-500.0,0.00046849,120]
[354719669,1740643841072,-500.0,0.00046849,120]
[354719670,1740643841081,-500.0,0.00046849,120]
[354719671,1740643841090,-1064.04,0.00046849,120]
[354719672,1740643841099,-500.0,0.00046849,120]
[354719673,1740643841109,-2621.9,0.00046849,120]
[354719674,1740643841119,-500.0,0.00046849,120]
[354719675,1740643841128,-515.8,0.00046849,120]
[354719676,1740643841137,-745.88,0.00046849,120]
[354719677,1740643841146,-504.75214274,0.00046849,120]
[354719678,1740643841155,-507.51,0.00046849,120]
[354719679,1740643841164,-1331.37,0.00046849,120]
[354719680,1740643841174,-500.0,0.00046849,120]
[354719681,1740643841183,-500.0,0.00046849,120]
[354719682,1740643841192,-43931.95,0.00046849,7]
[354719683,1740643841201,-3799.07,0.00046849,120]
[354719684,1740643841211,-841.24,0.00046849,120]
[354719685,1740643841220,-153.85798637,0.00046849,120]
[354719686,1740643841229,-882.72,0.00046849,120]
[354719687,1740643841238,-500.0,0.00046849,120]
[354719688,1740643841248,-500.0,0.00046849,120]
[354719689,1740643841258,-11997.45,0.00046849,120]
[354719690,1740643841268,-500.0,0.00046849,30]
[354719691,1740643841277,-1302.38,0.00046849,120]
[354719692,1740643841287,-500.0,0.00046849,120]
[354719693,1740643841296,-500.0,0.00046849,120]
[354719694,1740643841305,-808.04,0.00046849,120]
[354719695,1740643841315,-500.0,0.00046849,120]
[354719696,1740643841324,-500.0,0.00046849,120]
[354719697,1740643841332,-500.0,0.00046849,120]
[354719698,1740643841341,-500.0,0.00046849,120]
[354719699,1740643841351,-486.67128337,0.00046849,120]
[354719700,1740643841360,-859.92,0.00046849,120]
[354719701,1740643841370,-1913.41,0.00046849,120]
[354719702,1740643841379,-750.4,0.00046849,120]
[354719703,1740643841389,-500.0,0.00046849,7]
[354719704,1740643841398,-500.0,0.00046849,120]
[354719705,1740643841407,-500.0,0.00046849,120]
[354719706,1740643841416,-500.0,0.00046849,120]
[354719707,1740643841426,-224.15520906,0.00046849,120]
[354719708,1740643841435,-2005.67,0.00046849,120]
[354719709,1740643841444,-500.0,0.00046849,120]
[354719710,1740643841453,-566.22,0.00046849,120]
[354719711,1740643841462,-500.0,0.00046849,120]
[354719712,1740643841471,-500.0,0.00046849,120]
[354719713,1740643841481,-500.0,0.00046849,120]
[354719714,1740643841490,-500.0,0.00046849,120]
[354719715,1740643841500,-500.0,0.00046849,120]
[354719716,1740643841510,-1266.05,0.00046849,120]
[354719717,1740643841519,-500.0,0.00046849,120]
[354719718,1740643841529,-500.0,0.00046849,120]
[354719719,1740643841539,-500.0,0.00046849,120]
[354719720,1740643841548,-500.0,0.00046849,120]
[354719721,1740643841557,-757.67,0.00046849,120]
[354719722,1740643841567,-500.0,0.00046849,120]
[354719723,1740643841576,-500.0,0.00046849,120]
[354719724,1740643841585,-500.0,0.00046849,120]
[354719725,1740643841594,-500.0,0.00046849,120]
[354719726,1740643841604,-500.0,0.00046849,120]
[354719727,1740643841613,-500.0,0.00046849,120]
[354719728,1740643841623,-500.0,0.00046849,120]
[354719729,1740643841632,-580.24,0.00046849,120]
[354719730,1740643841641,-500.0,0.00046849,120]
[354719731,1740643841650,-500.0,0.00046849,120]
[354719732,1740643841659,-500.0,0.00046849,120]
[354719733,1740643841667,-500.0,0.00046849,120]
[354719734,1740643841676,-500.0,0.00046849,120]
[354719735,1740643841685,-500.0,0.00046849,120]
[354719736,1740643841694,-902.37,0.00046849,120]
[354719737,1740643841703,-500.0,0.00046849,120]
[354719738,1740643841713,-500.0,0.00046849,120]
[354719739,1740643841722,-500.0,0.00046849,21]
[354719740,1740643841731,-500.0,0.00046849,120]
[354719741,1740643841740,-1343.52,0.00046849,120]
[354719742,1740643841749,-444.14609084,0.00046849,120]
[354719743,1740643841759,-500.0,0.00046849,120]
[354719744,1740643841768,-2321.44,0.00046849,120]
[354719745,1740643841777,-500.0,0.00046849,120]
[354719746,1740643841786,-500.0,0.00046849,120]
[354719747,1740643841795,-500.0,0.00046849,120]
[354719748,1740643841804,-500.0,0.00046849,120]
[354719749,1740643841813,-677.1,0.00046849,120]
[354719750,1740643841822,-500.0,0.00046849,120]
[354719751,1740643841831,-500.0,0.00046849,120]
[354719752,1740643841840,-500.0,0.00046849,120]
[354719753,1740643841849,-857.13,0.00046849,120]
[354719754,1740643841859,-575.67,0.00046849,120]
[354719755,1740643841868,-500.0,0.00046849,120]